[Event "Betsys MČR v online bleskovém šachu 2021"]
[Site "Chess.com"]
[Date "2021.04.17"]
[Round "8"]
[White "FaceOfLightning"]
[Black "catanist19"]
[Result "0-1"]
[WhiteElo "1934"]
[BlackElo "1746"]
[TimeControl "180+1"]
[EndTime "10:22:00 PDT"]
[Termination "Uživatel catanist19 zvítězil na čas"]

1. e4 {[%clk 0:03:00.9]} 1... c5 {[%clk 0:02:55.7]} 2. Nc3 {[%clk 0:02:59.4]}
2... e6 {[%clk 0:02:54.9]} 3. a4 {[%clk 0:02:43]} 3... Be7 {[%clk 0:02:49.2]} 4.
f4 {[%clk 0:02:41.1]} 4... d5 {[%clk 0:02:44.4]} 5. e5 {[%clk 0:02:39.8]} 5...
Nc6 {[%clk 0:02:36.5]} 6. Nf3 {[%clk 0:02:39.2]} 6... Nh6 {[%clk 0:02:34.2]} 7.
Bb5 {[%clk 0:02:33.8]} 7... Bd7 {[%clk 0:02:32.1]} 8. d3 {[%clk 0:02:33.1]} 8...
a6 {[%clk 0:02:25.1]} 9. Bxc6 {[%clk 0:02:32.4]} 9... Bxc6 {[%clk 0:02:23.8]}
10. a5 {[%clk 0:02:31.7]} 10... O-O {[%clk 0:02:11.2]} 11. O-O {[%clk
0:02:29.1]} 11... Rc8 {[%clk 0:02:04.2]} 12. Qe1 {[%clk 0:02:27.6]} 12... c4
{[%clk 0:01:58.2]} 13. d4 {[%clk 0:02:24.9]} 13... Bb4 {[%clk 0:01:52.2]} 14.
Bd2 {[%clk 0:02:23.1]} 14... Bxa5 {[%clk 0:01:46.8]} 15. h3 {[%clk 0:01:56.6]}
15... Bb6 {[%clk 0:01:40]} 16. g4 {[%clk 0:01:54.4]} 16... Ba7 {[%clk
0:01:33.5]} 17. Na4 {[%clk 0:01:28.7]} 17... b5 {[%clk 0:01:26.9]} 18. Nc3
{[%clk 0:01:23.6]} 18... b4 {[%clk 0:01:25.2]} 19. Ne2 {[%clk 0:01:22.6]} 19...
a5 {[%clk 0:01:22.2]} 20. c3 {[%clk 0:01:18.3]} 20... bxc3 {[%clk 0:01:17.5]}
21. Bxc3 {[%clk 0:01:17.1]} 21... a4 {[%clk 0:01:15.7]} 22. Ng3 {[%clk 0:01:16]}
22... Rb8 {[%clk 0:01:08.9]} 23. g5 {[%clk 0:01:11.3]} 23... Nf5 {[%clk
0:01:06.1]} 24. Nxf5 {[%clk 0:01:11.2]} 24... exf5 {[%clk 0:01:05.4]} 25. Qb1
{[%clk 0:00:53.1]} 25... g6 {[%clk 0:01:02]} 26. Qc2 {[%clk 0:00:49.7]} 26...
Rb3 {[%clk 0:00:59.3]} 27. Nd2 {[%clk 0:00:47.3]} 27... Rb7 {[%clk 0:00:54.8]}
28. Rfe1 {[%clk 0:00:46.4]} 28... Re8 {[%clk 0:00:52.1]} 29. h4 {[%clk
0:00:41.1]} 29... Qe7 {[%clk 0:00:41.6]} 30. Nf1 {[%clk 0:00:40.2]} 30... Rb3
{[%clk 0:00:37.6]} 31. Ne3 {[%clk 0:00:38.2]} 31... Bb6 {[%clk 0:00:33.1]} 32.
Qg2 {[%clk 0:00:32.6]} 32... Qa7 {[%clk 0:00:28.4]} 33. Red1 {[%clk 0:00:30]}
33... Rd8 {[%clk 0:00:26.7]} 34. h5 {[%clk 0:00:28.9]} 34... Ba5 {[%clk
0:00:23.2]} 35. Rdc1 {[%clk 0:00:19.8]} 35... Bxc3 {[%clk 0:00:21.3]} 36. bxc3
{[%clk 0:00:19.2]} 36... Rdb8 {[%clk 0:00:19.1]} 37. hxg6 {[%clk 0:00:17]} 37...
fxg6 {[%clk 0:00:18.2]} 38. Rc2 {[%clk 0:00:14.9]} 38... Rb1+ {[%clk 0:00:16.5]}
39. Rxb1 {[%clk 0:00:14.4]} 39... Rxb1+ {[%clk 0:00:16.4]} 40. Kf2 {[%clk
0:00:13.5]} 40... a3 {[%clk 0:00:15.4]} 41. Kg3 {[%clk 0:00:13.1]} 41... Qa4
{[%clk 0:00:12]} 42. Nxd5 {[%clk 0:00:10.9]} 42... Bxd5 {[%clk 0:00:07.5]} 43.
Qxd5+ {[%clk 0:00:10.4]} 43... Kg7 {[%clk 0:00:06.4]} 44. Qg2 {[%clk 0:00:07.9]}
44... Qb3 {[%clk 0:00:04.5]} 45. d5 {[%clk 0:00:07]} 45... Rb2 {[%clk
0:00:03.5]} 46. e6 {[%clk 0:00:04.8]} 46... Rxc2 {[%clk 0:00:02.7]} 0-1

[Event "Betsys MČR v online bleskovém šachu 2021"]
[Site "Chess.com"]
[Date "2021.04.17"]
[Round "8"]
[White "xPsylocke"]
[Black "NeumanPetr"]
[Result "1/2-1/2"]
[WhiteElo "2216"]
[BlackElo "2479"]
[TimeControl "180+1"]
[EndTime "10:22:02 PDT"]
[Termination "Remíza opakováním pozice"]

1. e4 {[%clk 0:03:00.9]} 1... c5 {[%clk 0:03:00.3]} 2. Nc3 {[%clk 0:03:00.1]}
2... d6 {[%clk 0:03:00.4]} 3. d3 {[%clk 0:02:59.6]} 3... Nc6 {[%clk 0:02:59.8]}
4. g3 {[%clk 0:02:59.5]} 4... g6 {[%clk 0:02:59.4]} 5. Bg2 {[%clk 0:02:59.8]}
5... Bg7 {[%clk 0:03:00.1]} 6. Be3 {[%clk 0:02:59.7]} 6... e6 {[%clk 0:03:00.6]}
7. Qd2 {[%clk 0:02:59.9]} 7... Rb8 {[%clk 0:02:54.6]} 8. Nge2 {[%clk 0:02:52.7]}
8... Nd4 {[%clk 0:02:52.4]} 9. Nc1 {[%clk 0:02:50]} 9... h5 {[%clk 0:02:50.3]}
10. Nd1 {[%clk 0:02:43.5]} 10... h4 {[%clk 0:02:45.1]} 11. h3 {[%clk 0:02:21.8]}
11... hxg3 {[%clk 0:02:41.7]} 12. fxg3 {[%clk 0:02:19.3]} 12... Ne7 {[%clk
0:02:31.8]} 13. c3 {[%clk 0:02:18.4]} 13... Ndc6 {[%clk 0:02:30.6]} 14. Ne2
{[%clk 0:02:17.9]} 14... b5 {[%clk 0:02:28.2]} 15. Nf2 {[%clk 0:02:16.5]} 15...
b4 {[%clk 0:02:27.1]} 16. O-O {[%clk 0:02:14.3]} 16... e5 {[%clk 0:02:27.1]} 17.
c4 {[%clk 0:02:08.3]} 17... Be6 {[%clk 0:02:25.1]} 18. b3 {[%clk 0:02:08.3]}
18... Qd7 {[%clk 0:02:25.1]} 19. g4 {[%clk 0:01:50.6]} 19... f5 {[%clk
0:02:17.9]} 20. exf5 {[%clk 0:01:42.3]} 20... gxf5 {[%clk 0:02:18]} 21. gxf5
{[%clk 0:01:41.6]} 21... Nxf5 {[%clk 0:02:17.3]} 22. Bg5 {[%clk 0:01:39.4]}
22... Ncd4 {[%clk 0:01:54.5]} 23. Nxd4 {[%clk 0:01:36.1]} 23... Nxd4 {[%clk
0:01:51.9]} 24. Rae1 {[%clk 0:01:26]} 24... Bf5 {[%clk 0:01:04.3]} 25. h4 {[%clk
0:01:11.8]} 25... Qe6 {[%clk 0:01:01.7]} 26. Ne4 {[%clk 0:01:05.5]} 26... Kd7
{[%clk 0:00:59.4]} 27. Qf2 {[%clk 0:00:52]} 27... Rbf8 {[%clk 0:00:56.8]} 28.
Qg3 {[%clk 0:00:52.3]} 28... Bh6 {[%clk 0:00:44.6]} 29. Rf2 {[%clk 0:00:48.5]}
29... Bxg5 {[%clk 0:00:41.7]} 30. Nxg5 {[%clk 0:00:48.8]} 30... Qh6 {[%clk
0:00:31.4]} 31. Be4 {[%clk 0:00:33.7]} 31... Qxh4 {[%clk 0:00:23.3]} 32. Qxh4
{[%clk 0:00:33.5]} 32... Rxh4 {[%clk 0:00:23.3]} 33. Bxf5+ {[%clk 0:00:32.2]}
33... Rxf5 {[%clk 0:00:23.3]} 34. Rxf5 {[%clk 0:00:29.2]} 34... Nxf5 {[%clk
0:00:23.9]} 35. Re4 {[%clk 0:00:29.5]} 35... Rxe4 {[%clk 0:00:20.9]} 36. Nxe4
{[%clk 0:00:28.3]} 36... a5 {[%clk 0:00:20.2]} 37. Kf2 {[%clk 0:00:27.9]} 37...
Nd4 {[%clk 0:00:19.6]} 38. Ke3 {[%clk 0:00:23.2]} 38... Ke6 {[%clk 0:00:20.2]}
39. Ng5+ {[%clk 0:00:21.3]} 39... Ke7 {[%clk 0:00:20.4]} 40. Ne4 {[%clk
0:00:21.7]} 40... Nf5+ {[%clk 0:00:19]} 41. Kf3 {[%clk 0:00:18.9]} 41... Nd4+
{[%clk 0:00:16.1]} 42. Ke3 {[%clk 0:00:19.2]} 42... Kd7 {[%clk 0:00:15]} 43.
Nf6+ {[%clk 0:00:17.8]} 43... Ke6 {[%clk 0:00:14.2]} 44. Ne4 {[%clk 0:00:18.3]}
44... Nf5+ {[%clk 0:00:08.8]} 45. Kf3 {[%clk 0:00:18.2]} 45... Kf7 {[%clk
0:00:09.2]} 46. Kg4 {[%clk 0:00:08.9]} 46... Kg6 {[%clk 0:00:09.1]} 47. Kf3
{[%clk 0:00:09.3]} 47... Kh5 {[%clk 0:00:08.4]} 48. Nf6+ {[%clk 0:00:05.6]}
48... Kg6 {[%clk 0:00:08.6]} 49. Ne4 {[%clk 0:00:05.7]} 49... Nd4+ {[%clk
0:00:09.2]} 50. Ke3 {[%clk 0:00:05.7]} 50... Nf5+ {[%clk 0:00:09.6]} 51. Kf3
{[%clk 0:00:05.7]} 1/2-1/2

[Event "Betsys MČR v online bleskovém šachu 2021"]
[Site "Chess.com"]
[Date "2021.04.17"]
[Round "8"]
[White "Richarlito"]
[Black "mravecuk"]
[Result "1-0"]
[WhiteElo "2060"]
[BlackElo "2219"]
[TimeControl "180+1"]
[EndTime "10:22:03 PDT"]
[Termination "Uživatel Richarlito zvítězil na čas"]

1. e4 {[%clk 0:03:00.9]} 1... e6 {[%clk 0:02:59.5]} 2. d4 {[%clk 0:03:00.1]}
2... d5 {[%clk 0:02:59.9]} 3. exd5 {[%clk 0:03:00.4]} 3... exd5 {[%clk
0:03:00.8]} 4. c4 {[%clk 0:03:00.8]} 4... Nf6 {[%clk 0:03:00.7]} 5. Nc3 {[%clk
0:03:01]} 5... Bb4 {[%clk 0:03:00.4]} 6. Bd3 {[%clk 0:03:00.2]} 6... O-O {[%clk
0:02:58.8]} 7. Ne2 {[%clk 0:02:59.8]} 7... dxc4 {[%clk 0:02:58.6]} 8. Bxc4
{[%clk 0:02:59.7]} 8... Re8 {[%clk 0:02:56.9]} 9. O-O {[%clk 0:02:59.6]} 9...
Be6 {[%clk 0:02:56.2]} 10. Bd3 {[%clk 0:02:49.1]} 10... c5 {[%clk 0:02:52]} 11.
dxc5 {[%clk 0:02:45.7]} 11... Bxc5 {[%clk 0:02:52.2]} 12. Bg5 {[%clk 0:02:44.8]}
12... Be7 {[%clk 0:02:36.8]} 13. Qc2 {[%clk 0:02:41.7]} 13... h6 {[%clk
0:02:36.4]} 14. Bh4 {[%clk 0:02:39]} 14... Nc6 {[%clk 0:02:36.1]} 15. Rad1
{[%clk 0:02:38.5]} 15... Qa5 {[%clk 0:02:27.6]} 16. Rfe1 {[%clk 0:02:25.2]}
16... Nb4 {[%clk 0:02:25.2]} 17. Qb1 {[%clk 0:02:20.2]} 17... Nxd3 {[%clk
0:02:24.8]} 18. Qxd3 {[%clk 0:02:20.4]} 18... Rad8 {[%clk 0:02:19.2]} 19. Qc2
{[%clk 0:01:57.3]} 19... Rxd1 {[%clk 0:02:16.5]} 20. Rxd1 {[%clk 0:01:57.2]}
20... Qc7 {[%clk 0:01:57.5]} 21. Bg3 {[%clk 0:01:56.7]} 21... Qa5 {[%clk
0:01:47.6]} 22. Nd4 {[%clk 0:01:50]} 22... Bc8 {[%clk 0:01:42.5]} 23. Nb3 {[%clk
0:01:44.9]} 23... Qh5 {[%clk 0:01:28.1]} 24. Re1 {[%clk 0:01:38.5]} 24... Bf5
{[%clk 0:01:01.2]} 25. Qc1 {[%clk 0:01:27.3]} 25... Bb4 {[%clk 0:00:51.1]} 26.
Rxe8+ {[%clk 0:01:23.8]} 26... Nxe8 {[%clk 0:00:51.2]} 27. Nd5 {[%clk
0:01:20.2]} 27... Bf8 {[%clk 0:00:47]} 28. Nf4 {[%clk 0:01:17.4]} 28... Qg5
{[%clk 0:00:44.5]} 29. Nd4 {[%clk 0:01:12.4]} 29... Bd7 {[%clk 0:00:41.7]} 30.
Nf3 {[%clk 0:01:10.5]} 30... Qa5 {[%clk 0:00:38.3]} 31. a3 {[%clk 0:01:08.4]}
31... Qb6 {[%clk 0:00:35.6]} 32. Nd5 {[%clk 0:01:03.1]} 32... Qa5 {[%clk
0:00:32.1]} 33. Ne3 {[%clk 0:01:00]} 33... Nf6 {[%clk 0:00:30.3]} 34. h3 {[%clk
0:00:57.7]} 34... Bc6 {[%clk 0:00:29.7]} 35. Nd4 {[%clk 0:00:52.7]} 35... Bd7
{[%clk 0:00:29.6]} 36. Bc7 {[%clk 0:00:52]} 36... Qg5 {[%clk 0:00:27.5]} 37. Nf3
{[%clk 0:00:50.4]} 37... Qb5 {[%clk 0:00:24.4]} 38. Nd4 {[%clk 0:00:49.8]} 38...
Qa6 {[%clk 0:00:22.4]} 39. Bg3 {[%clk 0:00:46.2]} 39... Ne4 {[%clk 0:00:21.6]}
40. Bf4 {[%clk 0:00:40]} 40... Qf6 {[%clk 0:00:21.4]} 41. Ne2 {[%clk 0:00:27.6]}
41... Bd6 {[%clk 0:00:20.8]} 42. Nd5 {[%clk 0:00:25]} 42... Qe6 {[%clk
0:00:16.6]} 43. Bxd6 {[%clk 0:00:22]} 43... Qxd6 {[%clk 0:00:13.5]} 44. Ne3
{[%clk 0:00:21.2]} 44... Qf6 {[%clk 0:00:11.7]} 45. f3 {[%clk 0:00:17.6]} 45...
Nd6 {[%clk 0:00:08.9]} 46. Nd5 {[%clk 0:00:16.9]} 46... Qe6 {[%clk 0:00:07.6]}
47. Nef4 {[%clk 0:00:16.9]} 47... Qf5 {[%clk 0:00:05]} 48. Ne7+ {[%clk
0:00:15.9]} 48... Kh7 {[%clk 0:00:04.4]} 49. Nxf5 {[%clk 0:00:16.8]} 49... Nxf5
{[%clk 0:00:04.8]} 50. Qc2 {[%clk 0:00:17.1]} 50... g6 {[%clk 0:00:03.1]} 51.
Nd5 {[%clk 0:00:16.7]} 51... Bc6 {[%clk 0:00:02.6]} 52. Nf6+ {[%clk 0:00:16.5]}
52... Kg7 {[%clk 0:00:02.9]} 53. Ne4 {[%clk 0:00:16.8]} 53... Nd4 {[%clk
0:00:01.9]} 54. Qc3 {[%clk 0:00:17]} 1-0

[Event "Betsys MČR v online bleskovém šachu 2021"]
[Site "Chess.com"]
[Date "2021.04.17"]
[Round "8"]
[White "KarelZalesky"]
[Black "Simago"]
[Result "0-1"]
[WhiteElo "1793"]
[BlackElo "2096"]
[TimeControl "180+1"]
[EndTime "10:22:04 PDT"]
[Termination "Uživatel Simago zvítězil na čas"]

1. e4 {[%clk 0:03:00.9]} 1... c5 {[%clk 0:02:58.9]} 2. Nf3 {[%clk 0:03:00.3]}
2... g6 {[%clk 0:02:59]} 3. c3 {[%clk 0:02:56]} 3... Bg7 {[%clk 0:02:58.3]} 4.
d4 {[%clk 0:02:55.2]} 4... cxd4 {[%clk 0:02:58.8]} 5. cxd4 {[%clk 0:02:54.3]}
5... Nf6 {[%clk 0:02:58.9]} 6. Nc3 {[%clk 0:02:53.4]} 6... O-O {[%clk
0:02:58.3]} 7. e5 {[%clk 0:02:51.2]} 7... Ne8 {[%clk 0:02:57.8]} 8. Bc4 {[%clk
0:02:48.7]} 8... Nc6 {[%clk 0:02:51.5]} 9. O-O {[%clk 0:02:38.7]} 9... d6 {[%clk
0:02:51.2]} 10. Qe2 {[%clk 0:01:41.3]} 10... Bg4 {[%clk 0:02:49.6]} 11. Rd1
{[%clk 0:01:15.4]} 11... a6 {[%clk 0:02:26.8]} 12. Bf4 {[%clk 0:01:09]} 12...
Rc8 {[%clk 0:02:20.6]} 13. h3 {[%clk 0:01:05.2]} 13... Bxf3 {[%clk 0:02:18.1]}
14. Qxf3 {[%clk 0:01:04.1]} 14... b5 {[%clk 0:01:55.9]} 15. Bd5 {[%clk
0:00:48.4]} 15... Qb6 {[%clk 0:01:31.1]} 16. Bxc6 {[%clk 0:00:31.6]} 16... Qxc6
{[%clk 0:01:30.8]} 17. Nd5 {[%clk 0:00:29.4]} 17... Qd7 {[%clk 0:01:17.3]} 18.
Nb6 {[%clk 0:00:27.9]} 18... Qd8 {[%clk 0:01:06.8]} 19. Nxc8 {[%clk 0:00:27.9]}
19... Qxc8 {[%clk 0:01:07.7]} 20. Rdc1 {[%clk 0:00:27.7]} 20... Qb8 {[%clk
0:01:01.6]} 21. Rc6 {[%clk 0:00:24]} 21... a5 {[%clk 0:00:54.6]} 22. Rac1 {[%clk
0:00:23.2]} 22... dxe5 {[%clk 0:00:53.6]} 23. dxe5 {[%clk 0:00:23.1]} 23... Bxe5
{[%clk 0:00:45.8]} 24. Bxe5 {[%clk 0:00:23.2]} 24... Qxe5 {[%clk 0:00:45.7]} 25.
b3 {[%clk 0:00:22.3]} 25... Nd6 {[%clk 0:00:40.1]} 26. R6c5 {[%clk 0:00:21.9]}
26... Qb2 {[%clk 0:00:32.4]} 27. R5c2 {[%clk 0:00:20.6]} 27... Qd4 {[%clk
0:00:27.5]} 28. Qe2 {[%clk 0:00:20]} 28... Re8 {[%clk 0:00:18.8]} 29. Rd2 {[%clk
0:00:19.7]} 29... Qf6 {[%clk 0:00:17.7]} 30. Rcd1 {[%clk 0:00:18.9]} 30... Kf8
{[%clk 0:00:17]} 31. Qd3 {[%clk 0:00:15.8]} 31... a4 {[%clk 0:00:10.1]} 32. bxa4
{[%clk 0:00:14.5]} 32... bxa4 {[%clk 0:00:10.4]} 33. Qe3 {[%clk 0:00:13.3]}
33... Nf5 {[%clk 0:00:09.5]} 34. Qa3 {[%clk 0:00:11.7]} 34... Kg7 {[%clk
0:00:08.5]} 35. Qxa4 {[%clk 0:00:11]} 35... Rc8 {[%clk 0:00:07.4]} 36. Qb3
{[%clk 0:00:10.3]} 36... Rc3 {[%clk 0:00:04.3]} 37. Qb2 {[%clk 0:00:07.4]} 37...
Rc6 {[%clk 0:00:01.3]} 38. Qxf6+ {[%clk 0:00:06.4]} 38... Kxf6 {[%clk
0:00:02.2]} 39. a4 {[%clk 0:00:05.5]} 39... Ra6 {[%clk 0:00:02.3]} 40. Ra1
{[%clk 0:00:04.5]} 40... e5 {[%clk 0:00:02.3]} 41. a5 {[%clk 0:00:04.2]} 41...
Nd4 {[%clk 0:00:02.3]} 42. Rb2 {[%clk 0:00:03.8]} 42... Nf5 {[%clk 0:00:02.2]}
43. Rb6+ {[%clk 0:00:03.5]} 43... Rxb6 {[%clk 0:00:02.4]} 44. axb6 {[%clk
0:00:03.6]} 44... Nd6 {[%clk 0:00:01.7]} 45. Ra7 {[%clk 0:00:02.3]} 45... Nb5
{[%clk 0:00:01.1]} 46. b7 {[%clk 0:00:01.6]} 46... Nxa7 {[%clk 0:00:01.6]} 47.
b8=Q {[%clk 0:00:01.3]} 47... Nc6 {[%clk 0:00:02.1]} 0-1

[Event "Betsys MČR v online bleskovém šachu 2021"]
[Site "Chess.com"]
[Date "2021.04.17"]
[Round "8"]
[White "AJedlicka"]
[Black "fm_magua"]
[Result "0-1"]
[WhiteElo "2208"]
[BlackElo "2517"]
[TimeControl "180+1"]
[EndTime "10:22:07 PDT"]
[Termination "Uživatel fm_magua zvítězil na čas"]

1. d4 {[%clk 0:02:58.4]} 1... Nf6 {[%clk 0:02:59.6]} 2. c4 {[%clk 0:02:58]} 2...
g6 {[%clk 0:02:59.6]} 3. Nc3 {[%clk 0:02:57.4]} 3... Bg7 {[%clk 0:03:00.1]} 4.
e4 {[%clk 0:02:56.9]} 4... O-O {[%clk 0:03:00.7]} 5. Nf3 {[%clk 0:02:56.7]} 5...
d6 {[%clk 0:03:01.2]} 6. Be2 {[%clk 0:02:56.5]} 6... e5 {[%clk 0:03:01.7]} 7.
Be3 {[%clk 0:02:56]} 7... Ng4 {[%clk 0:03:01.9]} 8. Bg5 {[%clk 0:02:55.7]} 8...
f6 {[%clk 0:03:02.4]} 9. Bh4 {[%clk 0:02:55.6]} 9... g5 {[%clk 0:03:02.6]} 10.
Bg3 {[%clk 0:02:55.3]} 10... Nh6 {[%clk 0:03:03.3]} 11. h3 {[%clk 0:02:52.8]}
11... Nc6 {[%clk 0:03:02.7]} 12. d5 {[%clk 0:02:52.3]} 12... Ne7 {[%clk
0:03:03]} 13. Qd2 {[%clk 0:02:52.1]} 13... Ng6 {[%clk 0:03:02.8]} 14. Nh2 {[%clk
0:02:47]} 14... Nf4 {[%clk 0:03:00.8]} 15. Bxf4 {[%clk 0:02:44.1]} 15... exf4
{[%clk 0:03:01]} 16. Ng4 {[%clk 0:02:41.7]} 16... Nf7 {[%clk 0:02:52.9]} 17. h4
{[%clk 0:02:35.6]} 17... h5 {[%clk 0:02:47.9]} 18. Nh2 {[%clk 0:02:35.1]} 18...
g4 {[%clk 0:02:46.1]} 19. Qxf4 {[%clk 0:02:32.2]} 19... Bh6 {[%clk 0:02:44.9]}
20. Qg3 {[%clk 0:02:31]} 20... Ne5 {[%clk 0:02:45.1]} 21. O-O {[%clk 0:02:25.7]}
21... f5 {[%clk 0:02:45.1]} 22. exf5 {[%clk 0:02:23.2]} 22... Rxf5 {[%clk
0:02:42.7]} 23. Ne4 {[%clk 0:02:19.2]} 23... Bf4 {[%clk 0:02:38.3]} 24. Qc3
{[%clk 0:02:18.4]} 24... Bxh2+ {[%clk 0:02:27.9]} 25. Kxh2 {[%clk 0:02:17.8]}
25... Qxh4+ {[%clk 0:02:26.5]} 26. Kg1 {[%clk 0:02:17.1]} 26... Bd7 {[%clk
0:02:18.5]} 27. Rae1 {[%clk 0:01:48.3]} 27... Raf8 {[%clk 0:02:17.2]} 28. Qg3
{[%clk 0:01:42.6]} 28... Qxg3 {[%clk 0:01:49.6]} 29. fxg3 {[%clk 0:01:33]} 29...
Rxf1+ {[%clk 0:01:46]} 30. Bxf1 {[%clk 0:01:31]} 30... Bf5 {[%clk 0:01:36.9]}
31. Nc3 {[%clk 0:01:24.1]} 31... a6 {[%clk 0:01:22.4]} 32. c5 {[%clk 0:01:22.3]}
32... Kg7 {[%clk 0:01:17.9]} 33. cxd6 {[%clk 0:01:21.4]} 33... cxd6 {[%clk
0:01:18]} 34. a4 {[%clk 0:01:16.4]} 34... Rc8 {[%clk 0:01:08]} 35. Kf2 {[%clk
0:01:06.4]} 35... Rc5 {[%clk 0:01:00.1]} 36. Rd1 {[%clk 0:00:58.8]} 36... Bc2
{[%clk 0:00:52.4]} 37. Rd4 {[%clk 0:00:57.3]} 37... Bg6 {[%clk 0:00:41.6]} 38.
Rb4 {[%clk 0:00:55.6]} 38... Rc7 {[%clk 0:00:41]} 39. Rb6 {[%clk 0:00:54.8]}
39... Bd3 {[%clk 0:00:38.5]} 40. Bxd3 {[%clk 0:00:49]} 40... Nxd3+ {[%clk
0:00:38.7]} 41. Ke3 {[%clk 0:00:49]} 41... Ne5 {[%clk 0:00:39]} 42. Ke2 {[%clk
0:00:38.9]} 42... Nc4 {[%clk 0:00:37.8]} 43. Rb4 {[%clk 0:00:37.4]} 43... Nxb2
{[%clk 0:00:30.8]} 44. Rxb2 {[%clk 0:00:36]} 44... Rxc3 {[%clk 0:00:30.9]} 45.
Rxb7+ {[%clk 0:00:35]} 45... Kf6 {[%clk 0:00:31.5]} 46. Rb6 {[%clk 0:00:33.6]}
46... Ke5 {[%clk 0:00:31.7]} 47. Rxa6 {[%clk 0:00:33.2]} 47... Ra3 {[%clk
0:00:31.3]} 48. Ra5 {[%clk 0:00:31.5]} 48... Ke4 {[%clk 0:00:31.5]} 49. Ra8
{[%clk 0:00:27.2]} 49... Rxg3 {[%clk 0:00:30.1]} 50. Kf2 {[%clk 0:00:26.1]}
50... Ra3 {[%clk 0:00:30.1]} 51. Rh8 {[%clk 0:00:22.6]} 51... g3+ {[%clk
0:00:30]} 52. Kf1 {[%clk 0:00:19.1]} 52... Ke3 {[%clk 0:00:26.3]} 53. Re8+
{[%clk 0:00:15.7]} 53... Kd2 {[%clk 0:00:25.9]} 54. Re2+ {[%clk 0:00:09.5]}
54... Kd3 {[%clk 0:00:25.5]} 55. Re6 {[%clk 0:00:08.6]} 55... Ra1+ {[%clk
0:00:23.2]} 56. Re1 {[%clk 0:00:08.1]} 56... Rxa4 {[%clk 0:00:23.4]} 57. Re6
{[%clk 0:00:06.1]} 57... Ra1+ {[%clk 0:00:22.9]} 0-1

[Event "Betsys MČR v online bleskovém šachu 2021"]
[Site "Chess.com"]
[Date "2021.04.17"]
[Round "8"]
[White "kol340"]
[Black "Krtecci"]
[Result "1/2-1/2"]
[WhiteElo "1849"]
[BlackElo "2074"]
[TimeControl "180+1"]
[EndTime "10:22:07 PDT"]
[Termination "Remíza – nedostatek materiálu"]

1. d4 {[%clk 0:02:52.9]} 1... Nf6 {[%clk 0:02:59.3]} 2. Nf3 {[%clk 0:02:53.1]}
2... e6 {[%clk 0:02:58.7]} 3. Bf4 {[%clk 0:02:53.1]} 3... b6 {[%clk 0:02:58.2]}
4. e3 {[%clk 0:02:53.6]} 4... Bb7 {[%clk 0:02:58.5]} 5. c4 {[%clk 0:02:54.1]}
5... Bb4+ {[%clk 0:02:58]} 6. Nbd2 {[%clk 0:02:53.5]} 6... O-O {[%clk
0:02:50.2]} 7. Bd3 {[%clk 0:02:51]} 7... Bxd2+ {[%clk 0:02:43.2]} 8. Qxd2 {[%clk
0:02:49.7]} 8... Ne4 {[%clk 0:02:40.9]} 9. Qc2 {[%clk 0:02:48.7]} 9... f5 {[%clk
0:02:40.6]} 10. O-O {[%clk 0:02:42.5]} 10... d6 {[%clk 0:02:40.7]} 11. b4 {[%clk
0:02:36.1]} 11... Nd7 {[%clk 0:02:37]} 12. a4 {[%clk 0:02:34.6]} 12... Ndf6
{[%clk 0:02:34.6]} 13. Nd2 {[%clk 0:02:31.2]} 13... Qe8 {[%clk 0:02:33.3]} 14.
f3 {[%clk 0:02:30]} 14... Nxd2 {[%clk 0:02:32.2]} 15. Qxd2 {[%clk 0:02:30.9]}
15... Qh5 {[%clk 0:02:29.5]} 16. c5 {[%clk 0:02:23.5]} 16... Nd5 {[%clk
0:01:54.9]} 17. Bg3 {[%clk 0:02:03.7]} 17... Rad8 {[%clk 0:01:35.4]} 18. cxb6
{[%clk 0:01:59.3]} 18... cxb6 {[%clk 0:01:29.7]} 19. a5 {[%clk 0:01:41.9]} 19...
Qg5 {[%clk 0:01:25]} 20. f4 {[%clk 0:01:25.9]} 20... Qf6 {[%clk 0:01:15.4]} 21.
Rac1 {[%clk 0:01:11.4]} 21... Rc8 {[%clk 0:01:14.4]} 22. Rxc8 {[%clk 0:01:02.2]}
22... Rxc8 {[%clk 0:01:13.7]} 23. Rc1 {[%clk 0:01:03.1]} 23... Qd8 {[%clk
0:01:11.1]} 24. e4 {[%clk 0:00:54.6]} 24... Rxc1+ {[%clk 0:00:55.4]} 25. Qxc1
{[%clk 0:00:54.5]} 25... Nxb4 {[%clk 0:00:54]} 26. Bc4 {[%clk 0:00:46.3]} 26...
d5 {[%clk 0:00:52.8]} 27. exd5 {[%clk 0:00:42.4]} 27... Bxd5 {[%clk 0:00:48.3]}
28. Be1 {[%clk 0:00:35.5]} 28... bxa5 {[%clk 0:00:44.8]} 29. Bb5 {[%clk
0:00:23.4]} 29... h6 {[%clk 0:00:38]} 30. h3 {[%clk 0:00:22.7]} 30... Qb6 {[%clk
0:00:34.9]} 31. Qc5 {[%clk 0:00:20.5]} 31... Qxc5 {[%clk 0:00:30.2]} 32. dxc5
{[%clk 0:00:21.4]} 32... Nc6 {[%clk 0:00:18.9]} 33. Kf2 {[%clk 0:00:19.2]} 33...
Kf7 {[%clk 0:00:18]} 34. g4 {[%clk 0:00:19.6]} 34... fxg4 {[%clk 0:00:16.8]} 35.
hxg4 {[%clk 0:00:20.5]} 35... g6 {[%clk 0:00:13.9]} 36. Ke3 {[%clk 0:00:19.2]}
36... Ke7 {[%clk 0:00:11.5]} 37. Bxc6 {[%clk 0:00:19.4]} 37... Bxc6 {[%clk
0:00:11.4]} 38. Bxa5 {[%clk 0:00:19.7]} 38... Bd5 {[%clk 0:00:09.8]} 39. Kd4
{[%clk 0:00:19.9]} 39... Kd7 {[%clk 0:00:09.3]} 40. Ke5 {[%clk 0:00:20.1]} 40...
Kc6 {[%clk 0:00:09.9]} 41. Bd2 {[%clk 0:00:18.6]} 41... a6 {[%clk 0:00:07.6]}
42. f5 {[%clk 0:00:18.8]} 42... gxf5 {[%clk 0:00:06.6]} 43. gxf5 {[%clk
0:00:18]} 43... exf5 {[%clk 0:00:02.6]} 44. Kxf5 {[%clk 0:00:16.2]} 44... h5
{[%clk 0:00:02.4]} 45. Kg5 {[%clk 0:00:16.5]} 45... Bf3 {[%clk 0:00:02]} 46. Bb4
{[%clk 0:00:16]} 46... Kb5 {[%clk 0:00:01.9]} 47. Ba3 {[%clk 0:00:16.3]} 47...
Ka4 {[%clk 0:00:02]} 48. Bc1 {[%clk 0:00:15.9]} 48... Kb4 {[%clk 0:00:02.3]} 49.
c6 {[%clk 0:00:15]} 49... Kc5 {[%clk 0:00:02.4]} 50. c7 {[%clk 0:00:14.9]} 50...
Bb7 {[%clk 0:00:01.7]} 51. Kxh5 {[%clk 0:00:14.7]} 51... a5 {[%clk 0:00:02.3]}
52. Bf4 {[%clk 0:00:15.2]} 52... a4 {[%clk 0:00:02.5]} 53. Bh6 {[%clk 0:00:16]}
53... a3 {[%clk 0:00:03]} 54. Bf8+ {[%clk 0:00:16.9]} 54... Kc6 {[%clk
0:00:03.3]} 55. Bxa3 {[%clk 0:00:16.7]} 55... Kxc7 {[%clk 0:00:04.2]} 1/2-1/2